Cogmind - Beta 16 @@@ ROGUE MODE // 2025.11.03 @ 13:04:44 Player: Cameron Result: Destroyed by UF-EWY(R) with Subdweller Beam Cannon Performance ------------- Evolutions (0) 0 Regions Visited (2) 400 Robots Destroyed (25) 125 Value Destroyed (587) 587 Prototype IDs (14) 280 Alien Tech Used (0) 0 Bonus (0) 0 TOTAL SCORE: 1392 Bonus ------- None Cogmind --------- Core Integrity 0/250 Matter 249/300 Energy 120/125 System Corruption 4% Temperature Hot (241) Movement Rolling (100) Location -10/Subcaves Parts ------- > --- POWER (1) -------- Light Ion Engine > --- PROPULSION (2) --- Compact Wheel Compact Wheel > --- UTILITY (2) ------ (None) > --- WEAPON (2) ------- Light Cannon Battle Cannon > --- INVENTORY (5) ---- Ion Engine Light Ion Engine Hover Unit Assault Rifle Datajack Peak State ------------ > --- POWER ------------ Ion Engine Light Ion Engine > --- PROPULSION ------- Aluminum Leg Compact Wheel Compact Wheel Compact Wheel > --- UTILITY ---------- Humpback Tower Shield > --- WEAPON ----------- Light Cannon Light Cannon Battle Cannon Datajack > --- INVENTORY -------- Ion Engine Ion Engine Ion Engine Light Nuclear Core Makeshift Leg Subdweller Monowheel Hover Unit Hover Unit Hover Unit Hover Unit High-capacity Storage Unit Huge Storage Unit Huge Storage Unit Medium Battery High-capacity Battery Medium Matter Pod Propulsion Shielding Makeshift Light Armor Plating Makeshift Light Armor Plating Makeshift Hacking Suite Subdweller Laser Assault Rifle Light Assault Rifle Datajack Scrap Shield Fragment [Rating: 37] Favorites ----------- Power Light Ion Engine Engine Light Ion Engine Propulsion Compact Wheel Treads Light Treads Leg Aluminum Leg Wheel Compact Wheel Utility Huge Storage Unit Device Terrain Scanner Storage Huge Storage Unit Protection Tower Shield Weapon Light Cannon Energy Gun EM Pulse Gun Ballistic Gun Assault Rifle Ballistic Cannon Light Cannon Launcher Grenade Launcher Special Melee Weapon Datajack Build | -11 -10 -10 ------- Run | Yrd Mat Sub Slots Evolved . | . . . Power . | . . . Propulsion . | . . . Utility . | . . . Weapon . | . . . Parts Attached 30 | 6 15 9 Power 4 | 1 2 1 Engine 4 | 1 2 1 Core . | . . . Reactor . | . . . Propulsion 6 | 2 2 2 Treads 1 | . 1 . Leg 1 | . . 1 Wheel 4 | 2 1 1 Hover . | . . . Flight . | . . . Utility 10 | 1 6 3 Device 2 | . 2 . Storage 5 | 1 3 1 Processor . | . . . Hackware . | . . . Protection 3 | . 1 2 Artifact . | . . . Weapon 10 | 2 5 3 Energy Gun 1 | 1 . . Energy Cannon . | . . . Ballistic Gun 3 | 1 2 . Ballistic Cannon 4 | . 2 2 Launcher 1 | . 1 . Special Weapon . | . . . Impact Weapon . | . . . Slashing Weapon . | . . . Piercing Weapon . | . . . Special Melee Weapon 1 | . . 1 Unidentified Prototypes . | . . . Parts Lost 8 | . 6 2 Power 1 | . 1 . Propulsion 1 | . 1 . Utility 2 | . 1 1 Weapon 4 | . 3 1 Highest Loss Streak 4 | . 4 1 To Critical Strikes . | . . . Average Backups 21 | 4 20 22 Power 3 | . 3 4 Propulsion 6 | 2 7 5 Utility 5 | . 5 7 Weapon 3 | . 3 3 Tool/Special . | . . . Unused Backups 33 | . 8 25 Power 7 | . 1 6 Propulsion 15 | . 7 8 Utility 7 | . . 7 Weapon 3 | . . 3 Tool/Special 1 | . . 1 Average Slot Usage (%) 94 | . 98 87 Engine 13 | . 14 13 Treads 4 | . 7 . Leg 1 | . . 2 Wheel 21 | . 20 23 Device 6 | . 9 . Storage 12 | . 14 10 Protection 5 | . 3 9 Energy Gun 1 | . 3 . Ballistic Gun 9 | . 15 . Ballistic Cannon 10 | . 2 23 Launcher 3 | . 5 . Special Melee Weapon 1 | . . 2 Peak Build Rating 37 | 6 9 37 Average Rating 14 | 4 8 23 On Entrance 5 | . 6 9 Avg Prop Armor Cover (%) 9 | . 12 1 Naked Turns . | . . . Heaviest Build 256 | 14 90 256 Greatest Support 48 | 32 32 48 Greatest Overweight (x) 7 | . 5 7 Average Overweight (x) 2 | . 2 3 Largest Inventory Capacity 35 | 8 25 35 Average Capacity 24 | 7 22 29 Most Carried 28 | 7 25 28 Average Carried 21 | 4 20 23 Final Capacity 25 | 8 25 5 Final Carried 23 | 6 23 5 Class Distribution -------------------- 79% | Mutant 14% | Hauler-Gunner 5% | Hauler-Mutant Dominant Class ---------------- Mutant | -10/Materials Mutant | -10/Subcaves Resources | -11 -10 -10 ----------- Run | Yrd Mat Sub Matter Collected 895 | 152 396 347 Remotely . | . . . Salvage Created 583 | . 576 7 Parts 50 | . 50 . Haulers Intercepted 1 | . 1 . Recyclers Shooed 1 | . 1 . Parts Field Recycled . | . . . Retrieved Matter . | . . . Parts Self-Destructed . | . . . Prevented . | . . . Parts Restored . | . . . Kills | -11 -10 -10 ------- Run | Yrd Mat Sub Combat Hostiles Destroyed 17 | . 16 1 Guns 9 | . 9 . Cannons 4 | . 3 1 AOE 4 | . 4 . Classes Destroyed 9 | . 8 1 Builder 1 | . 1 . Tunneler 1 | . 1 . Hauler 1 | . 1 . Recycler 1 | . 1 . Operator 1 | . 1 . Watcher 3 | . 3 . Swarmer 6 | . 6 . Grunt 10 | . 10 . Subdweller 1 | . . 1 Best Kill Streak 7 | . 7 1 Combat Bots Only 3 | . 3 1 Max Kills in Single Turn 2 | . 2 1 Gunslinging 1 | . 1 . Exploded 2 | . 2 . Melee . | . . . Uniques/NPCs Destroyed . | . . . Combat | -11 -10 -10 -------- Run | Yrd Mat Sub Hostile Shots Fired 114 | . 102 12 Missed 24 | . 24 . Hits 90 | . 78 12 Projectile 90 | . 78 12 Critical Strikes 1 | . . 1 Damage Taken 1393 | . 907 486 Core 255 | . 204 51 Absorbed by Shields . | . . . Redirected to Shielding 13 | . 13 . Core Remaining (%) 100 | 100 . . Volleys Fired 76 | . 68 8 Largest 3 | . 2 3 Hottest 93 | . 60 93 Shots Fired 124 | . 101 23 Gun 76 | . 76 . Cannon 42 | . 19 23 Launcher 6 | . 6 . Special . | . . . Kinetic 90 | . 67 23 Thermal . | . . . Explosive 6 | . 6 . Electromagnetic 28 | . 28 . Robot Hit Streak 9 | . 9 8 Robot Miss Streak 7 | . 7 3 Penetration Max . | . . . Secondary Targets 3 | . 3 . Max Gunslinging Chain 1 | . 1 . Shots Hit Robots 72 | . 58 14 Core Hits 38 | . 35 3 Critical Kills . | . . . Critical Parts Destroyed . | . . . Critical Strikes 2 | . 2 . Blast 2 | . 2 . Melee Attacks . | . . . Impact . | . . . Slashing . | . . . Piercing . | . . . Sneak Attacks . | . . . Combat Hostiles . | . . . Follow-up Attacks . | . . . Damage Inflicted 1733 | . 1505 228 Guns 560 | . 560 . Cannons 477 | . 249 228 Explosions 658 | . 658 . Melee . | . . . Ramming 38 | . 38 . Kinetic 810 | . 582 228 Thermal 199 | . 199 . Explosive 459 | . 459 . Electromagnetic 227 | . 227 . Impact . | . . . Slashing . | . . . Piercing . | . . . Highest Corruption 4 | . 4 4 Average Corruption 3 | . 3 4 Corruption Purged . | . . . Corruption Blocked . | . . . Effects 19 | . 3 16 Message Errors 3 | . . 3 Matter Fused 5 | . 1 4 Heat Flow Errors 1 | . . 1 Energy Discharges 1 | . . 1 Data Loss (minor) 5 | . 1 4 Data Loss (major) 2 | . 1 1 Misfires 1 | . . 1 Alerts 1 | . . 1 Overload Shots . | . . . Overflow Damage 64 | . 64 . Projectiles . | . . . Explosions 64 | . 64 . Melee . | . . . Knockbacks 5 | . 2 3 Impact . | . . . Kinetic 5 | . 2 3 Secondary . | . . . Self-Inflicted Damage 91 | . 91 . Shots 1 | . 1 . Rammed 1 | . 1 . Targets Rammed 1 | . 1 . Kicked . | . . . Crushed . | . . . Highest Temperature 267 | . 90 267 Average Temperature 48 | . 38 86 Received Heat Transfer 752 | . 384 368 Siege Activations . | . . . Martial Activations . | . . . Shielding Activations . | . . . Robots Disrupted . | . . . Combat Hostiles . | . . . Robots Corrupted . | . . . Combat Hostiles . | . . . Parts Fried . | . . . Impact Corruptions . | . . . Robots Melted . | . . . Combat Hostiles . | . . . Parts Melted . | . . . Heat Transferred 150 | . 150 . Parts Sabotaged . | . . . Parts Stolen . | . . . Parts Stripped . | . . . Power Chain Reactions . | . . . Alert | -11 -10 -10 ------- Run | Yrd Mat Sub Maximum Alert Level 1 | . 1 . Low Security (%) 98 | 100 98 . Level 1 1 | . 1 . Level 2 . | . . . Level 3 . | . . . Level 4 . | . . . Level 5 . | . . . High Security . | . . . Max Security . | . . . Peak Influence 205 | . 205 . Initial . | . . . Average 71 | . 74 . Influence Increases 607 | . 607 . Destroy 0b10 Robot/C 320 | . 320 . Destroy 0b10 Robot/NC 40 | . 40 . Destroy Leader 68 | . 68 . Successful Hack 31 | . 31 . Disable Machine 75 | . 75 . Destroy Structure 43 | . 43 . Lose Combat Pursuer 30 | . 30 . Influence Decreases 607 | . 499 108 Entered New Map 52 | . . 52 Time Decay 495 | . 439 56 Lost Part 60 | . 60 . Squads Dispatched 3 | . 3 . Investigation 1 | . 1 . Extermination . | . . . Reinforcement 2 | . 2 . Assault . | . . . Garrison . | . . . Intercept . | . . . Searches Triggered . | . . . Construction Impeded . | . . . Haulers Reinforced . | . . . Active Scanning Responses . | . . . Cargo Convoy Interrupts . | . . . Stealth | -11 -10 -10 --------- Run | Yrd Mat Sub Distress Signals 2 | . 2 . Communications Jammed . | . . . Distress Signals . | . . . Times Spotted 25 | . 23 2 Peak Tracking Total 5 | . 5 1 Tactical Retreats 1 | . 1 . Traps | -11 -10 -10 ------- Run | Yrd Mat Sub Traps Triggered 4 | . 1 3 Indirectly . | . . . Trap Hack Attempts 4 | . . 4 Triggered . | . . . Disarmed . | . . . Reprogrammed 1 | . . 1 Reused . | . . . Traps Extracted . | . . . Installed . | . . . Triggered . | . . . Machines | -11 -10 -10 ---------- Run | Yrd Mat Sub Machines Disabled 8 | . 7 1 Max in Single Turn 3 | . 3 1 Machines Repaired . | . . . Machines Dismantled . | . . . Machines Sabotaged . | . . . Overloaded Fab Kills . | . . . Hacking | -11 -10 -10 --------- Run | Yrd Mat Sub Machines Accessed 7 | . 6 1 Terminals 6 | . 6 . Fabricators . | . . . Repair Stations . | . . . Recycling Units . | . . . Scanalyzers . | . . . Garrison Access . | . . . Total Hacks 27 | . 18 9 Successful 15 | . 6 9 Failed 12 | . 12 . Catastrophic 2 | . 2 . Database Lockouts . | . . . Manual 7 | . 7 . Terminals 18 | . 18 . Fabricators . | . . . Repair Stations . | . . . Recycling Units . | . . . Scanalyzers . | . . . Garrison Access . | . . . Terminal Hacks 15 | . 6 9 Record 8 | . . 8 Prototype ID Bank 1 | . 1 . Emergency Access Points 1 | . 1 . Terminal Index 1 | . 1 . Locate Traps 1 | . 1 . Recall Investigation 1 | . 1 . Registered Components 1 | . 1 . Proto ID Catalog 1 | . . 1 Fabricator Hacks . | . . . Repair Station Hacks . | . . . Recycling Unit Hacks . | . . . Scanalyzer . | . . . Garrison Access Hacks . | . . . Unauthorized Hacks . | . . . Terminals . | . . . Fabricators . | . . . Repair Stations . | . . . Recycling Units . | . . . Scanalyzers . | . . . Garrison Access . | . . . Data Cores Recovered . | . . . Used . | . . . Hacking Detections 5 | . 5 . Full Trace Events 4 | . 4 . Feedback Events 1 | . 1 . Corruption 1 | . 1 . Feedback Blocked . | . . . Robot Schematics Acquired . | . . . Robots Built . | . . . Authchips . | . . . Time . | . . . Total Robot Build Rating . | . . . Part Schematics Acquired . | . . . Parts Built . | . . . Authchips . | . . . Time . | . . . Total Part Build Rating . | . . . Part Studies Acquired . | . . . Parts Repaired . | . . . Time . | . . . Parts Recycled . | . . . Recycled Matter . | . . . Retrieved Matter . | . . . Retrieved Components . | . . . Parts Scanalyzed . | . . . Part Schematics Acquired . | . . . Parts Damaged . | . . . Bothacking | -11 -10 -10 ------------ Run | Yrd Mat Sub Used RIF Installer . | . . . Robots Hacked . | . . . Non-combat . | . . . Combat . | . . . Robot Hacks Applied . | . . . Relay Couplers Released . | . . . Fabnet Peak Effective % . | . . . Robots Rewired . | . . . Allies Hacked . | . . . Hacks Repelled . | . . . Allies | -11 -10 -10 -------- Run | Yrd Mat Sub Total Allies . | . . . Largest Group . | . . . Highest-Rated Group . | . . . Highest-Rated Ally . | . . . Total Orders . | . . . Ally Attacks . | . . . Total Damage . | . . . Kills . | . . . Allies Corrupted . | . . . Allies Melted . | . . . Intel | -11 -10 -10 ------- Run | Yrd Mat Sub Active Infowar (turns) 900 | . 900 . Terrain 566 | . 566 . Structural 334 | . 334 . Robot Analysis Total . | . . . Derelict Logs Recovered 1 | . . 1 Drone Launches . | . . . Drone Recoveries . | . . . Exploration | -11 -10 -10 ------------- Run | Yrd Mat Sub Turns Passed 2119 | 58 1277 784 Spaces Moved 1212 | 44 747 421 Core 1 | 1 . . Treads 1 | . 1 . Legs . | . . . Wheels 1210 | 43 746 421 Hover . | . . . Flight . | . . . Fastest Speed 50 | 50 100 115 Average Speed 141 | 98 138 151 Slowest Speed 320 | 100 320 205 Overloaded Moves . | . . . Propulsion Burnouts . | . . . Robots Hopped . | . . . Potential Cave-ins . | . . . Cave-ins Triggered . | . . . Exploration Rate (%) 40 | 4 91 26 Regions Visited 2 Branch Regions 1 Pre-discovered Areas 1 | . . 1 Known Exits Taken . | . . . Unknown Exits Taken 2 | 1 1 . Scrap Searched 5 | . . 5 Spaces Dug . | . . . Terrain Destroyed 42 | . 42 . Melee . | . . . Projectile . | . . . AOE 42 | . 42 . Terrain Rammed . | . . . Walls Destroyed . | . . . Machines Disabled . | . . . Actions | -11 -10 -10 --------- Run | Yrd Mat Sub Total 1496 | 56 893 547 Wait 66 | . 8 58 Move 1210 | 43 746 421 Hop . | . . . Pick Up 79 | 7 35 37 Fast Attach 12 | 5 5 2 Attach 15 | 1 6 8 Detach 1 | . 1 . Swap 9 | . 8 1 Drop 23 | . 15 8 Fire 76 | . 68 8 Melee . | . . . Ram 1 | . 1 . Kick . | . . . Crush . | . . . Escape Stasis . | . . . Rewire . | . . . Trap 4 | . . 4 Miscellaneous . | . . . Route ------- -11/Scrapyard -10/Materials (discovered 4 exits: [*Mat x2] / [*Min] / *Sub) -10/Subcaves (discovered 1 exit: [*Mat]) History --------- Turn | Location | Event 23 | -11/Scrapyard | Discovered new exit (range 15) 59 | -11/Scrapyard | Entered Materials 312 | -10/Materials | Build established: Mutant 701 | -10/Materials | Discovered new exit (range 12) 908 | -10/Materials | Discovered new exit (range 16) 1228 | -10/Materials | Discovered new exit (range 12) 1247 | -10/Materials | Core integrity fell below 50% 1278 | -10/Materials | Lost 4 parts (1p1u2w) 1280 | -10/Materials | Core integrity fell below 20% 1326 | -10/Materials | Discovered new exit (range 9) 1336 | -10/Materials | Entered Subcaves 1337 | -10/Subcaves | Approached by a straggling Scientist 1344 | -10/Subcaves | Learned location of Mines (-9) 1367 | -10/Subcaves | Shifting Twisted Machinery released Piercing Trap 1371 | -10/Subcaves | Shifting Twisted Machinery released Mak. Light Armor Plating 1381 | -10/Subcaves | Discovered new exit (range 15) 1606 | -10/Subcaves | Visited 4L-MR0's lab 1651 | -10/Subcaves | Found Tower Shield 1716 | -10/Subcaves | Attached Tower Shield, gained temporary slots: Power, Propulsion x2, Utility x2, Weapon x2 2043 | -10/Subcaves | A swath of the cavern ceiling suddenly collapsed 2106 | -10/Subcaves | Build established: Hauler-Gunner 2120 | -10/Subcaves | Destroyed by UF-EWY(R) with Subdweller Beam Cannon Last Messages --------------- 02007_ Attempting to reprogram Piercing Trap. 02009_ Subatomizers dissect the Lgt. Ion Engine. 02009_ Attempting to reprogram Piercing Trap. 02012_ Acquired Lgt. Ion Engine. 02016_ System corrupted: Matter fused (-8). A swath of the cavern ceiling suddenly collapses. 02043_ System corrupted: Component data lost. 02082_ K,YPWFIKMJEHS>TGQY6YP>Y&CSO 02116_ Critical hit (Meltdown: +260). 02118_ Tower Shield destroyed. 02120_ Temporary Power slot lost. 02120_ Temporary Propulsion slot lost. 02120_ Temporary Utility slot lost. 02120_ Temporary Weapon slot lost. 02120_ Datajack crushed and broken. 02120_ Temporary Weapon slot lost. Map ----- +----------------------------------------------------+ | ?????????????????????????????????????????????????? | | ?????????????????????????????????????????????????? | | ?????????????????????????????????????????????????? | | ?????????????????????????????????????????????????? | | ?????????????????????????????????????????????????? | | ?????????????????????????????????????????????????? | | ?????????????????????????????????????????????????? | | ?????????????????????????????????????????????????? | | ?????????????????????????????????????????????????? | | ???????????????????????????????????????????????### | | ???????????????????????????????? ""????????????""" | | ???????????????????????????????""""#???????????# " | | ??????????????????????????????? """##?????######"" | | ???????????????????????????????"""" ###??##^ | | ????????????????????????????????#" ##?# # | | ???????????????????????????????##" ### # # | | ???????????????????????????#####" ^ ^## | | ??????????????????????????## ##" ^ # | | ????????????????????????### ^ | | ????????????????????????# | | ????????????????????????# ### #### | | ?????????????????????????#! #?## ###??# | | ????????????????????????##!=! ######??####???## | | ???????????????????????##=[!&% ##????????####### | | ???????????????????????#==!=*] #?????????#" ##" | | ???????????????????????#!@ *!####?????????# # | | ???????????????????????#!=*=##????????????# ##"#" | | ???????????????????????##!!=#?????????????# ### | | ???????????????????????##!%R#?????????????#" ## | | ???????????????????????##[###?????????????###### | | ???????????????????????###;"#??????????????????# | | ???????????????????????##";#"# #???????????????# | | ???????????????????????#"#;#####???????????????### | | ??????????????????????###"###???????????#####???## | | ??????????????????????###"###???????#####" ###?# | | ???????????????????????##""##???????#! #### ""### | | ???????????????????????##"###???????#"=####" ## | | ???????????????????????##"####??????## ##" ###" | | ???????????????????????# # ####???#" ### # " | | ??????????????????????## ##??#"" #?# | | ??????????????????????# #??#"X #?# | | ??????????????????????## ##??#"" #?# #" | | ???????????????????????## ###???#" #### ## | | ???????????????????????## ##?????#" ##" # | | ???????????????????????# #??????# #+## ## | | ???????????????????????# ###??????#""# ## "## | | ???????????????????????# ##????????#### "& ### | | ???????????????????????####????????????# " " ### | | ???????????????????????????????????????#######?### | | ???????????????????????????????????????????????## | +----------------------------------------------------+ Best States ------------- Heat Dissipation 25 Energy Generation 15 Energy Capacity 275 Matter Stores 300 Matter Capacity 400 Sight Range 16 Terrain Scan Range 14 Terrain Scan Density 10 Armor Coverage 2000 Propulsion Shielding 33 Evasion (%) 40 Item Schematics ----------------- None Robot Schematics ------------------ None Fabricated ------------ Nothing Repaired ---------- Nothing Studied --------- None Alien Tech Used ----------------- None Achievements -------------- Mistaken Identity Challenges ------------ None Game ------ Seed ShadeDecoyWarhead Manual? 0 Play Time 00:25:01 Cumulative 46.3 hours Start 2025.11.03 @ 12:34:27 End 2025.11.03 @ 13:04:44 Sessions 1 Manual Loads 0 Difficulty Rogue Special Mode None Game No. 45 Rogue 45 Adventurer 0 Explorer 0 Win Type - Total 0 Types 0/0/0/0/0/0/0/0/0/0 Lore% 21 Gallery% 33 Achievement% 25 Wizard Run 0 Options --------- Layout 1 ASCII 0 Keyboard 0 Movement Numpad Keybinds 0 Fullscreen 2 Font 32/SmallcapsGlow Map View 50x35 Zoom Use 0% Tactical HUD 1 Map Filters NONE Filters NONE Steam 1 RUN: aaca9d36-78a0-450a-ae3e-9ab9b557810a